bitfinex/quotes_ETHUSD_20251028
["timestamp","ask_amount","ask_price","bid_price","bid_amount"]
[1761686294166,0.099,3965.8,3965.3,1.97714]
[1761686294448,0.2261,3966.5,3965.4,0.49591813]
[1761686294612,0.2261,3966.5,3965.5,0.4307215]
[1761686294945,0.2261,3966.5,3965.7,1.960704]
[1761686298018,0.1038,3965.7,3965.4,2.415]
[1761686299754,0.2158,3965.8,3965.6,0.1256]
[1761686299954,0.1038,3965.7,3965.6,0.1256]
[1761686300672,0.1038,3965.7,3965.6,2.414]
[1761686301066,0.2158,3965.8,3965.6,2.414]
[1761686301364,0.2249,3966.8,3965.7,1.7966]
[1761686301365,0.1038,3966.4,3965.7,1.7966]
[1761686301563,0.2249,3966.8,3965.7,1.7966]
[1761686301765,0.1049,3966.7,3965.7,1.7966]
[1761686304966,0.2249,3966.8,3965.7,0.2414]
[1761686304967,0.1049,3966.6,3965.7,0.2414]
[1761686305166,0.1049,3966.6,3965.8,2.413]
[1761686305466,0.1049,3966.6,3965.9,0.705]
[1761686308184,0.2203,3967.3,3965.9,0.705]
[1761686308185,0.2203,3967.3,3966.0,0.4707]
[1761686308390,0.2225,3966.7,3965.9,0.705]
[1761686308740,0.2225,3966.7,3966.0,2.412]
[1761686308741,0.1073,3966.6,3966.0,2.412]
[1761686309185,2.6283944,3966.6,3966.0,2.412]
[1761686309345,0.53718257,3966.5,3966.0,2.412]
[1761686309657,0.64448257,3966.5,3966.0,2.412]
[1761686309844,0.1073,3966.4,3966.0,2.412]
[1761686310589,0.1073,3966.4,3966.3,0.1256]
[1761686313386,2.52124145,3966.3,3965.6,0.002]
[1761686313587,0.1073,3966.4,3965.7,2.411]
[1761686313790,2.9266136,3966.6,3965.7,2.411]
[1761686313791,0.3198,3966.3,3965.7,2.411]
[1761686315011,0.2225,3966.7,3965.7,2.6523]
[1761686315154,0.099,3966.5,3965.7,2.6523]
[1761686316756,0.099,3966.5,3965.8,1.58041559]
[1761686316957,0.2225,3966.7,3965.8,1.5552]
[1761686319060,0.099,3966.6,3965.9,2.41]
[1761686319398,0.099,3966.6,3965.9,2.95685]
[1761686320999,0.099,3966.6,3965.6,0.002]
[1761686321170,0.2204,3965.7,3965.6,0.002]
[1761686321496,0.2204,3965.7,3965.6,2.411]
[1761686321880,0.322,3965.7,3965.6,2.411]
[1761686322082,14.65922124,3967.6,3965.6,2.411]
[1761686322083,0.1106,3966.8,3965.6,2.411]
[1761686322296,0.1127,3965.7,3965.6,2.411]
[1761686322597,0.3189,3966.7,3965.6,2.6523]
[1761686322764,2.8377935,3966.7,3965.6,2.411]
[1761686323095,0.3168,3966.7,3965.6,2.411]
[1761686323297,0.3168,3966.6,3965.6,2.411]
[1761686323606,0.1168,3965.7,3965.6,2.411]
[1761686323805,2.83787379,3966.6,3965.6,2.411]
[1761686323806,0.1106,3966.8,3966.5,0.1256]
[1761686324014,2.52099297,3966.7,3966.6,2.408]
[1761686324309,3.35103992,3966.7,3966.6,2.5336]
[1761686325513,3.75654392,3966.7,3966.6,2.408]
[1761686325685,5.31174392,3966.7,3966.6,2.408]
[1761686326907,7.81174392,3966.7,3966.6,2.408]
[1761686327109,0.405504,3965.9,3965.6,0.002]
[1761686327286,2.52155933,3965.8,3965.7,2.407]
[1761686327473,2.95205933,3965.8,3965.7,2.407]
[1761686327674,4.91276333,3965.8,3965.7,2.407]
[1761686327878,1.9857,3965.8,3965.7,2.407]
[1761686328216,5.11133333,3965.8,3965.7,2.407]
[1761686329013,4.48232691,3965.7,3965.6,0.002]
[1761686329204,4.91282691,3965.7,3965.6,0.002]
[1761686331516,19.96896752,3965.7,3965.6,0.002]
[1761686331720,4.91282691,3965.7,3965.6,0.002]
[1761686332217,1.15268095,3965.7,3965.6,0.002]
[1761686332529,0.1106,3966.8,3965.6,0.002]
[1761686332702,0.3229,3966.8,3965.6,0.002]
[1761686332907,0.1106,3966.8,3965.6,0.4525]
[1761686333106,0.4326,3967.3,3965.6,0.4525]
[1761686333420,0.2113,3967.2,3965.7,0.44147]
[1761686333809,0.2113,3967.2,3965.8,0.4505]
[1761686335020,0.2113,3967.2,3965.8,0.4005]
[1761686335591,0.2203,3967.3,3965.8,0.4005]
[1761686335592,0.001,3967.3,3965.9,2.8152]
[1761686335795,0.001,3967.3,3966.0,1.83128106]
[1761686335994,0.001,3967.3,3966.1,0.167]
[1761686336413,0.001,3967.3,3967.2,0.217]
[1761686336709,0.001,3967.3,3967.2,2.405]
[1761686337143,0.001,3967.3,3967.2,2.5306]
[1761686337144,0.4273,3967.3,3967.2,2.5306]
[1761686337743,3.64868178,3967.3,3967.2,2.405]
[1761686337915,3.35340995,3967.3,3967.2,2.405]
[1761686338938,2.94790595,3967.3,3967.2,2.405]
[1761686339133,3.35340995,3967.3,3967.2,2.405]
[1761686340915,18.40955056,3967.3,3967.2,2.405]
[1761686341732,2.92710995,3967.3,3967.2,2.405]
[1761686341950,1.1273,3967.3,3967.2,2.405]
[1761686342247,0.4273,3967.3,3967.2,2.405]
[1761686342942,2.94790595,3967.3,3967.2,2.405]
[1761686343347,0.832804,3967.3,3967.2,2.405]
[1761686343663,3.94129174,3967.3,3967.2,2.405]
[1761686345964,2.92636411,3966.9,3966.8,2.402]
[1761686346164,4.48156411,3966.9,3966.8,2.402]
[1761686346363,5.02266411,3966.9,3966.8,2.402]
[1761686347656,1.5552,3966.8,3965.6,0.002]
[1761686347873,2.52155933,3965.8,3965.7,2.402]
[1761686348170,0.2193,3965.7,3965.6,0.002]
[1761686348323,0.405504,3966.5,3965.6,0.002]
[1761686348644,2.5213882,3966.1,3965.6,0.002]
[1761686348846,0.835004,3966.5,3965.6,0.002]
[1761686349046,2.52123029,3966.4,3965.6,0.002]
[1761686349265,2.52124526,3966.3,3965.6,0.002]
[1761686349573,0.405504,3966.5,3965.6,0.4404]
[1761686349865,3.49538617,3966.5,3965.6,0.002]
[1761686350026,0.97425727,3966.5,3965.6,0.002]
[1761686350566,0.97425727,3966.5,3965.2,0.002]
[1761686350567,2.52111433,3966.5,3965.2,0.002]
[1761686350862,2.92656731,3966.6,3965.2,0.002]
[1761686351059,2.52093285,3966.8,3965.2,0.002]
[1761686351060,2.52111721,3966.5,3965.2,0.002]
[1761686351275,0.185,3966.9,3965.3,0.02521877]
[1761686351573,0.4666,3966.8,3965.2,0.002]
[1761686351774,0.4666,3966.8,3965.3,0.42048193]
[1761686352391,1.960704,3967.5,3965.3,0.42048193]
[1761686352673,0.405504,3967.5,3965.4,0.4368]
[1761686352843,0.7,3966.9,3965.4,0.4368]
[1761686353264,2.52556217,3967.4,3965.4,0.4368]
[1761686353698,2.52161021,3967.3,3965.4,0.4368]
[1761686354036,0.001,3967.3,3965.4,0.4368]
[1761686357970,0.001,3967.3,3967.2,0.1256]
[1761686358163,0.001,3967.3,3967.2,2.5246]
[1761686360189,0.001,3967.3,3967.2,2.399]
[1761686363292,0.001,3967.3,3966.4,0.2179]
[1761686363586,0.001,3967.3,3966.5,2.398]
[1761686363587,3.24087928,3967.3,3966.5,2.398]
[1761686363791,2.98821901,3967.3,3966.5,2.398]
[1761686363999,0.2358,3966.6,3966.5,2.398]
[1761686364201,3.17315077,3966.6,3966.5,2.398]
[1761686364492,0.6521,3966.6,3966.5,2.398]
[1761686365799,0.96940456,3966.6,3966.5,2.398]
[1761686365962,0.6521,3966.6,3966.5,2.398]
[1761686366471,3.17315077,3966.6,3966.5,2.398]
[1761686368505,4.48181833,3966.5,3966.4,2.396]
[1761686368803,4.48181833,3966.5,3965.8,0.002]
[1761686368804,0.821804,3966.5,3965.8,0.002]
[1761686368982,2.74269575,3965.9,3965.8,0.002]
[1761686369178,3.2691021,3965.9,3965.8,0.002]
[1761686369376,3.6835021,3965.9,3965.8,0.002]
[1761686369577,3.6835021,3965.9,3965.8,2.376]
[1761686373019,5.6442061,3965.9,3965.8,2.376]
[1761686373380,6.6442061,3965.9,3965.8,2.376]
[1761686374416,6.6442061,3965.9,3965.8,0.002]
[1761686377733,6.6442061,3965.9,3965.4,0.002]
[1761686377734,2.92725409,3965.5,3965.4,0.002]
[1761686377898,19.96173435,3965.5,3965.4,0.002]
[1761686378097,20.37613435,3965.5,3965.4,0.002]
[1761686382752,3.35928974,3965.5,3965.4,0.002]
[1761686383120,4.91448974,3965.5,3965.4,0.002]
[1761686383502,3.35928974,3965.5,3965.4,0.002]
[1761686383741,4.91448974,3965.5,3965.4,0.002]
[1761686384043,5.31999374,3965.5,3965.4,0.002]
[1761686384939,5.31999374,3965.5,3965.2,1e-08]
[1761686384940,2.92738128,3965.3,3965.2,1e-08]
[1761686385106,4.4828357,3964.9,3964.4,0.002]
[1761686385306,4.48309017,3964.5,3964.4,0.002]
[1761686385526,19.53923078,3964.5,3964.4,0.002]
[1761686385726,4.90622982,3964.5,3964.4,0.002]
[1761686385927,5.13362982,3964.5,3964.4,0.002]
[1761686387006,4.90622982,3964.5,3964.4,0.002]
[1761686387206,7.23362982,3964.5,3964.4,0.002]
[1761686389322,22.28977043,3964.5,3964.4,0.002]
[1761686389750,7.23362982,3964.5,3964.4,0.002]
[1761686391749,5.45102982,3964.5,3964.4,0.002]
[1761686391940,4.62238617,3964.5,3964.4,0.002]
[1761686392248,5.15349017,3964.5,3964.4,0.002]
[1761686392454,4.74798617,3964.5,3964.4,0.002]
[1761686392822,5.15349017,3964.5,3964.4,0.002]
[1761686393046,6.70869017,3964.5,3964.4,0.002]
[1761686394829,6.93609017,3964.5,3964.4,0.002]
[1761686396323,6.53058617,3964.5,3964.4,0.002]
[1761686396528,5.38089017,3964.5,3964.4,0.002]
[1761686396747,6.93609017,3964.5,3964.4,0.002]
[1761686400171,6.30318617,3964.5,3964.4,0.002]
[1761686402638,6.70869017,3964.5,3964.4,0.002]
[1761686404364,6.81049017,3964.5,3964.4,0.002]
[1761686404875,4.71049017,3964.5,3964.4,0.002]
[1761686405239,2.92839927,3963.7,3963.1,0.005]
[1761686405442,4.48359927,3963.7,3963.1,0.005]
[1761686405668,4.71109927,3963.7,3963.1,0.005]
[1761686406442,6.81109927,3963.7,3963.1,0.005]
[1761686407187,19.15491925,3963.2,3963.1,1e-08]
[1761686407542,19.38241925,3963.2,3963.1,1e-08]
[1761686413488,2.9291633,3962.5,3962.4,0.002]
[1761686413695,19.90918132,3962.5,3962.4,0.002]
[1761686415500,2.52385038,3962.2,3962.1,1e-08]
[1761686415658,2.52385038,3962.2,3960.4,0.2179]
[1761686415659,2.92999152,3961.2,3960.4,0.2179]
[1761686415856,19.7016331,3961.2,3960.1,0.2229]
[1761686416190,19.9329331,3961.2,3960.1,0.6837]
[1761686416354,19.9329331,3961.2,3960.1,0.2229]
[1761686416964,2.52391408,3962.1,3960.1,0.2229]
[1761686416965,0.4527,3962.5,3961.1,0.6604]
[1761686417257,17.19431794,3963.1,3961.1,0.6604]
[1761686417455,2.52340457,3962.9,3961.2,0.4608]
[1761686417763,2.52376799,3962.4,3961.2,0.4608]
[1761686417969,2.5239672,3962.1,3961.2,0.4608]
[1761686418170,2.52397918,3962.0,3961.3,0.13094]
[1761686418370,2.52397905,3962.0,3961.3,0.13094]
[1761686418570,2.52397905,3962.0,3961.4,0.4608]
[1761686418767,2.52402171,3962.0,3961.4,0.4608]
[1761686418980,2.52415565,3961.8,3961.4,0.4608]
[1761686419296,2.52408089,3961.9,3961.4,0.4608]
[1761686419505,2.52408089,3961.9,3961.1,0.1996]
[1761686419506,1.80760809,3961.9,3961.1,0.1996]
[1761686419670,2.52431948,3961.5,3961.2,0.4608]
[1761686419872,2.5244238,3961.3,3961.2,0.4608]
[1761686420601,2.52448752,3961.2,3961.1,0.005]
[1761686421427,4.07968752,3961.2,3961.1,0.005]
[1761686422974,4.07968752,3961.2,3961.1,0.1996]
[1761686423181,4.07968752,3961.2,3961.1,0.6604]
[1761686425811,4.07968752,3961.2,3961.1,0.1996]
[1761686425978,4.07968752,3961.2,3961.1,0.005]
[1761686425979,4.75265697,3961.2,3961.1,0.005]
[1761686426180,4.07968752,3961.2,3961.1,0.1996]
[1761686426391,4.07968752,3961.2,3961.1,0.6604]
[1761686426589,4.07968752,3961.2,3961.1,0.1996]
[1761686426780,4.07968752,3961.2,3961.1,0.005]
[1761686427003,4.75265697,3961.2,3961.1,0.005]
[1761686428106,4.75265697,3961.2,3961.1,0.1996]
[1761686428614,4.75265697,3961.2,3961.1,0.005]
[1761686432487,4.75265697,3961.2,3961.1,0.007]
[1761686434016,0.001,3961.6,3961.1,0.6624]
[1761686434411,0.001,3961.6,3961.2,0.4608]
[1761686435653,0.001,3961.6,3961.3,2.8418]
[1761686436145,0.001,3961.6,3961.4,0.4608]
[1761686440529,2.52524967,3961.6,3961.4,0.4608]
[1761686440730,0.001,3961.6,3961.4,0.4608]
[1761686442031,2.52524993,3961.6,3961.4,0.4608]
[1761686442402,0.001,3961.6,3961.4,0.4608]
[1761686443031,0.001,3961.6,3961.4,0.76514]
[1761686443234,0.001,3961.6,3961.4,2.32034]
[1761686443434,0.001,3961.6,3961.5,0.48894296]
[1761686443634,0.001,3961.6,3961.5,0.56473038]
[1761686444134,0.001,3961.6,3961.5,0.69033038]
[1761686444444,0.001,3961.6,3961.5,1.18341742]
[1761686454746,0.001,3961.6,3961.5,0.10103038]
[1761686454932,0.001,3961.6,3961.5,2.8377]
[1761686455130,0.001,3961.6,3961.5,2.374]
[1761686455521,0.001,3961.6,3961.5,2.8377]
[1761686455843,2.52429635,3961.5,3961.4,0.002]
[1761686456047,2.52429635,3961.5,3961.4,2.376]
[1761686456244,2.96679635,3961.5,3961.4,2.376]
[1761686456611,2.52429635,3961.5,3961.4,2.376]
[1761686457830,0.001,3961.6,3961.4,2.376]
[1761686458012,2.52429635,3961.5,3961.4,2.376]
[1761686458213,0.001,3961.6,3961.4,2.8397]
[1761686458445,0.001,3961.6,3961.4,2.376]
[1761686458845,2.52524204,3961.6,3961.4,2.376]
[1761686459545,2.52429635,3961.5,3961.4,2.376]
[1761686459924,2.52525416,3961.6,3961.4,2.376]
[1761686460252,0.001,3961.6,3961.5,0.4637]
[1761686460457,0.001,3961.6,3961.4,2.376]
[1761686460758,0.001,3961.6,3961.4,0.002]
[1761686460759,18.03635775,3961.5,3961.4,0.002]
[1761686461244,2.52429635,3961.5,3961.4,0.002]
[1761686462028,0.001,3961.6,3961.4,0.002]
[1761686462230,2.52429635,3961.5,3961.4,0.002]
[1761686462947,0.2977669,3961.6,3961.4,0.002]
[1761686463253,2.96679635,3961.5,3961.4,0.002]
[1761686464265,0.4425,3961.5,3961.4,0.002]
[1761686464669,0.001,3961.6,3961.4,0.002]
[1761686464955,0.001,3961.6,3961.5,0.1256]
[1761686465161,2.52523263,3961.6,3961.5,0.1256]
[1761686465364,0.001,3961.6,3961.5,0.1256]
[1761686465864,0.849004,3961.6,3961.4,0.002]
[1761686466160,0.001,3961.6,3961.4,0.002]
[1761686466359,2.52429635,3961.5,3961.4,0.002]
[1761686466562,0.001,3961.6,3961.4,0.002]
[1761686470882,2.52429635,3961.5,3961.4,0.002]
[1761686471383,2.52524762,3961.6,3961.4,0.002]
[1761686471876,2.52429635,3961.5,3961.4,0.002]
[1761686472681,4.1717445,3961.5,3961.4,0.002]
[1761686472882,3.4717445,3961.5,3961.4,0.002]
[1761686473996,3.0292445,3961.5,3961.4,0.002]
[1761686475668,8.00152576,3961.5,3961.4,0.002]
[1761686475994,0.001,3961.6,3961.4,0.1276]
[1761686476199,2.52429635,3961.5,3961.4,0.1276]
[1761686482396,0.001,3961.6,3961.4,0.1276]
[1761686482711,0.7,3961.5,3961.4,0.1276]
[1761686482934,3.22429635,3961.5,3961.4,0.1276]
[1761686483429,0.7,3961.5,3961.4,0.1276]
[1761686483834,0.001,3961.6,3961.4,0.1276]
[1761686484138,2.96679635,3961.5,3961.4,0.002]
[1761686484333,3.51599305,3961.5,3961.4,0.002]
[1761686486205,3.07349305,3961.5,3961.4,0.002]
[1761686486420,0.001,3961.6,3961.4,0.002]
[1761686486630,2.52429635,3961.5,3961.4,0.002]
[1761686486837,2.96679635,3961.5,3961.4,0.002]
[1761686487710,2.96679635,3961.5,3961.4,1.002]
[1761686488431,0.4425,3961.5,3961.4,1.002]
[1761686488619,2.96679635,3961.5,3961.4,1.002]
[1761686490850,0.001,3961.6,3961.4,1.4384]
[1761686491049,0.001,3961.6,3961.5,0.5997]
[1761686493207,0.001,3961.6,3961.5,0.4364]
[1761686495326,2.52429635,3961.5,3961.4,1.002]
[1761686495650,4.93580035,3961.5,3961.4,1.002]
[1761686495819,4.48519152,3961.2,3961.1,0.007]
[1761686496020,4.48519152,3961.2,3959.4,0.002]
[1761686496021,2.93050147,3960.4,3959.4,0.002]
[1761686496205,4.48570147,3960.4,3959.4,0.002]
[1761686496409,4.94110147,3960.4,3959.4,0.002]
[1761686498420,4.08032499,3960.2,3960.1,1e-08]
[1761686498763,19.16205569,3960.2,3960.1,1e-08]
[1761686499073,20.02295969,3960.2,3960.1,1e-08]
[1761686501231,20.02295969,3960.2,3959.4,0.002]
[1761686501232,2.52557141,3959.5,3959.4,0.002]
[1761686501420,19.16250211,3959.5,3959.4,0.002]
[1761686501621,4.08077141,3959.5,3959.4,0.002]
[1761686502643,2.52557141,3959.5,3959.4,0.002]
[1761686503035,2.98147141,3959.5,3959.4,0.002]
[1761686503241,0.001,3961.6,3959.4,0.4467]
[1761686503556,0.1256,3961.2,3960.3,0.1256]
[1761686503758,2.52495254,3960.5,3960.3,0.1256]
[1761686504159,2.52499747,3960.4,3960.3,0.1256]
[1761686504325,2.52591113,3960.6,3960.3,0.1256]
[1761686504526,2.52495959,3960.5,3960.3,0.1256]
[1761686504726,0.001,3960.6,3960.3,0.1256]
[1761686504961,2.52499747,3960.4,3960.3,0.1256]
[1761686505352,0.001,3960.6,3960.3,0.1256]
[1761686505353,2.524948,3960.5,3960.3,0.1256]
[1761686505557,2.52499747,3960.4,3960.3,0.1256]
[1761686506455,0.001,3960.6,3960.3,0.4447]
[1761686506987,0.001,3960.6,3959.8,0.4447]
[1761686506988,2.52503991,3960.4,3959.8,0.4447]
[1761686507172,0.001,3960.6,3960.1,0.2152]
[1761686507356,2.52502453,3960.4,3960.1,0.2152]
[1761686507559,2.52506291,3960.3,3960.1,0.2152]
[1761686507753,2.52498203,3960.5,3960.1,0.6599]
[1761686507957,0.001,3960.6,3960.1,0.6599]
[1761686508167,0.001,3960.6,3960.2,0.4447]
[1761686508709,0.001,3960.6,3960.3,2.236]
[1761686508865,0.001,3960.6,3960.4,0.73429]
[1761686509211,0.001,3960.6,3960.5,0.4447]
[1761686511877,0.001,3960.6,3960.4,0.28959]
[1761686512081,0.001,3960.6,3960.5,0.4447]
[1761686512859,0.001,3960.6,3960.3,2.236]
[1761686513270,0.001,3960.6,3960.4,0.4447]
[1761686513488,0.001,3960.6,3960.3,2.236]
[1761686513682,0.001,3960.6,3960.3,2.92582]
[1761686514894,0.001,3960.6,3960.3,2.236]
[1761686515097,2.52494225,3960.5,3960.3,2.236]
[1761686515266,0.001,3960.6,3960.3,2.236]
[1761686515468,2.52588009,3960.6,3960.3,2.6807]
[1761686516177,2.52493623,3960.5,3960.3,2.236]
[1761686516372,2.52587258,3960.6,3960.3,2.236]
[1761686516672,0.001,3960.6,3960.3,2.52559]
[1761686516894,2.52588318,3960.6,3960.3,2.52559]
[1761686517064,2.52499747,3960.4,3960.3,2.236]
[1761686517396,2.52494944,3960.5,3960.3,2.236]
[1761686517765,2.52589274,3960.6,3960.3,2.6807]
[1761686518804,0.001,3960.6,3960.3,2.236]
[1761686518973,0.001,3960.6,3960.4,0.4447]
[1761686520770,0.001,3960.6,3960.3,2.236]
[1761686521283,2.52587482,3960.6,3960.3,2.236]
[1761686521806,0.2345,3960.4,3960.1,0.002]
[1761686522002,0.001,3960.6,3960.1,0.002]
[1761686522297,2.52494267,3960.5,3960.2,0.4447]
[1761686522477,2.5250043,3960.4,3960.2,0.4447]
[1761686522678,2.52494777,3960.5,3960.2,0.4447]
[1761686522889,2.52500067,3960.4,3960.2,0.4447]
[1761686523210,2.52494856,3960.5,3960.2,0.4447]
[1761686523377,0.001,3960.6,3960.2,0.74659]
[1761686523788,0.001,3960.6,3960.3,0.4447]
[1761686523994,0.001,3960.6,3960.2,0.30189]
[1761686524194,0.001,3960.6,3960.1,0.002]
[1761686524505,2.52589132,3960.6,3960.1,0.002]
[1761686524672,2.52495067,3960.5,3960.1,0.002]
[1761686524867,2.52512499,3960.2,3960.1,0.002]
[1761686525871,3.26153834,3960.2,3960.1,0.002]
[1761686526089,5.22224234,3960.2,3960.1,0.002]
[1761686526803,5.22224234,3960.2,3959.5,0.002]
[1761686526804,4.08070762,3959.6,3959.5,0.002]
[1761686526977,4.31210762,3959.6,3959.5,0.002]
[1761686530696,4.31210762,3959.6,3959.0,0.002]
[1761686530697,4.48653057,3959.1,3959.0,0.002]
[1761686531019,19.40683983,3959.1,3959.0,0.002]
[1761686531194,4.31242657,3959.1,3959.0,0.002]
[1761686531530,14.68890926,3960.3,3959.0,0.002]
[1761686531688,2.52582657,3959.1,3959.0,0.1276]
[1761686532012,0.1256,3959.9,3959.1,0.2158]
[1761686532207,2.52576278,3959.2,3959.1,0.2158]
[1761686532789,14.68890926,3960.3,3959.1,0.9442]
[1761686532790,2.52556508,3959.6,3959.1,0.9442]
[1761686532988,2.52561903,3959.5,3959.1,0.9442]
[1761686533214,2.52561903,3959.5,3959.2,0.4746]
[1761686533424,0.7,3959.5,3959.2,0.4746]
[1761686534208,0.005,3960.4,3959.2,0.4746]
[1761686534413,2.52510117,3960.3,3959.3,0.25014]
[1761686534893,2.52514898,3960.2,3959.4,0.4746]
[1761686535193,2.52514524,3960.2,3959.4,0.4746]
[1761686535590,2.52507472,3960.3,3960.1,0.2158]
[1761686535790,2.52507472,3960.3,3960.2,2.353]
[1761686537926,0.405504,3960.2,3959.0,0.002]
[1761686538136,0.5056013,3960.3,3959.1,0.2158]
[1761686538422,2.52557141,3959.5,3959.4,0.002]
[1761686538730,0.001,3960.2,3959.4,0.002]
[1761686539035,0.001,3960.2,3959.5,0.4746]
[1761686539523,0.001,3960.2,3960.1,0.2158]
[1761686539734,2.52612499,3960.2,3960.1,1.9908]
[1761686542222,0.001,3960.2,3960.1,2.4654]
[1761686542403,0.001,3960.2,3960.1,2.71446532]
[1761686542928,0.001,3960.2,3960.1,4.39526532]
[1761686544632,0.001,3960.2,3960.1,4.26966532]
[1761686546649,0.001,3960.2,3960.1,2.4654]
[1761686546802,0.001,3960.2,3960.1,1.9908]
[1761686547004,0.001,3960.2,3960.1,1.775]
[1761686547204,2.52612499,3960.2,3960.1,1.775]
[1761686548349,2.76902499,3960.2,3960.1,1.775]
[1761686548533,3.0560306,3960.2,3960.1,1.775]
[1761686549639,0.001,3960.2,3960.1,1.775]
[1761686553250,2.52612499,3960.2,3960.1,1.775]
[1761686554761,2.52612499,3960.2,3960.1,1.9006]
[1761686555860,2.76902499,3960.2,3960.1,1.9006]
[1761686556037,2.76902499,3960.2,3960.1,1.775]
[1761686556243,3.29892826,3960.2,3960.1,1.775]
[1761686556641,2.52525252,3960.0,3959.9,0.1256]
[1761686556984,2.52557141,3959.5,3959.4,0.002]
[1761686557335,2.52557141,3959.5,3959.4,0.1276]
[1761686558238,0.53090327,3960.2,3959.4,0.6022]
[1761686558467,2.5254259,3959.8,3959.4,0.6022]
[1761686558672,2.5254259,3959.8,3959.7,0.1256]
[1761686558868,0.001,3960.2,3959.5,0.4746]
[1761686559040,0.001,3960.2,3960.1,0.2158]
[1761686559639,0.001,3960.6,3960.2,0.405504]
[1761686559877,0.001,3960.6,3960.3,2.347]
[1761686560080,0.001,3960.6,3960.4,2.870164]
[1761686560284,0.001,3960.6,3960.5,0.4502]
[1761686562456,0.001,3960.6,3960.5,0.855704]
[1761686567572,0.001,3960.6,3960.5,0.95674893]
[1761686568774,0.001,3960.6,3960.5,2.51194893]
[1761686568970,0.001,3960.6,3960.5,5.11823062]
[1761686569219,0.001,3960.6,3960.5,7.64316434]
[1761686569386,0.001,3960.6,3960.5,5.11823062]
[1761686586476,0.001,3960.6,3959.3,1.81030962]
[1761686586477,0.2954,3960.6,3959.3,1.81030962]
[1761686586641,0.001,3960.6,3959.5,2.7892]
[1761686586967,0.001,3960.6,3959.6,2.0054]
[1761686587164,0.001,3960.6,3959.7,0.43464]
[1761686587462,0.2954,3960.6,3959.6,1.5552]
[1761686587665,2.8203227,3960.6,3959.6,1.5552]
[1761686588168,0.2944,3960.5,3959.6,1.5552]
[1761686588372,2.81934952,3960.5,3959.6,1.5552]
[1761686588866,0.2944,3960.4,3959.6,1.5552]
[1761686589034,2.81941886,3960.4,3960.0,0.002]
[1761686589235,0.8505096,3960.4,3960.1,2.339]
[1761686589467,0.2944,3960.3,3960.1,2.339]
[1761686590673,2.52512499,3960.2,3960.1,2.339]
[1761686591172,2.81952499,3960.2,3960.1,2.339]
[1761686594379,0.001,3960.6,3960.1,2.339]
[1761686594600,2.81939286,3960.5,3960.1,2.339]
[1761686595047,0.2944,3960.4,3960.1,2.339]
[1761686596314,2.819399,3960.4,3960.1,2.339]
[1761686596465,2.819399,3960.4,3960.3,0.1256]
[1761686596661,0.2944,3960.4,3960.3,0.1256]
[1761686597195,2.81939747,3960.4,3960.3,0.1256]
[1761686598600,0.2944,3960.4,3960.3,0.1256]
[1761686599327,2.81939747,3960.4,3960.3,0.1256]
[1761686601595,0.001,3960.6,3960.3,0.1256]
[1761686601796,0.2936,3960.5,3960.3,0.1256]
[1761686602001,2.52503706,3960.4,3960.1,2.339]
[1761686602196,0.2936,3960.5,3960.1,2.339]
[1761686602494,2.52493441,3960.5,3960.4,0.1256]
[1761686603013,2.81853441,3960.5,3960.4,0.1256]
[1761686603426,0.001,3960.6,3960.4,0.1256]
[1761686603721,2.81853372,3960.5,3960.4,0.1256]
[1761686604225,0.2936,3960.5,3960.4,0.1256]
[1761686604584,2.81853372,3960.5,3960.4,0.1256]
[1761686606235,2.81953372,3960.5,3960.4,0.1256]
[1761686606403,0.2946,3960.5,3960.4,0.1256]
[1761686606605,2.81953372,3960.5,3960.4,0.1256]
[1761686609039,0.001,3960.5,3960.4,0.1256]
[1761686609222,0.2946,3960.5,3960.4,0.1256]
[1761686609426,2.81953372,3960.5,3960.4,0.1256]
[1761686611542,3.35407284,3960.5,3960.4,0.1256]
[1761686611710,2.52499747,3960.4,3960.3,0.002]
[1761686611911,2.81859747,3960.4,3960.3,0.002]
[1761686613030,4.77930147,3960.4,3960.3,0.002]
[1761686613225,5.19430835,3960.4,3960.3,0.002]
[1761686616451,5.29541994,3960.4,3960.3,0.002]
[1761686617129,5.19430835,3960.4,3960.3,0.002]
[1761686621873,10.17107333,3960.4,3960.3,0.002]
[1761686622477,10.27218824,3960.4,3960.3,0.002]
[1761686624967,10.27318824,3960.4,3960.3,0.002]
[1761686631799,11.26768415,3960.4,3960.3,0.002]
[1761686632898,5.19530835,3960.4,3960.3,0.002]
[1761686635204,5.19530835,3960.4,3959.9,0.002]
[1761686635205,0.1256,3960.3,3959.9,0.002]
[1761686635390,10.05171341,3960.0,3959.9,0.002]
[1761686635596,10.34531341,3960.0,3959.9,0.002]
[1761686636713,10.05171341,3960.0,3959.9,0.002]
[1761686636935,2.52525252,3960.0,3959.9,0.002]
[1761686640793,0.001,3960.4,3959.9,0.4554]
[1761686640994,0.001,3960.4,3960.3,0.2158]
[1761686641227,2.52525252,3960.0,3959.9,0.4554]
[1761686641598,2.52525252,3960.0,3959.9,0.002]
[1761686642014,2.5252095,3960.1,3959.9,0.4554]
[1761686642214,2.52544384,3959.7,3959.1,0.007]
[1761686642427,10.45772767,3959.2,3959.1,0.007]